[Event "Late-Titled-Tuesday-Blitz-February-06-2024"]
[Site "Chess.com"]
[Date "2024.02.06"]
[Round "3"]
[White "temus_galaktionov"]
[Black "JM2005GM"]
[Result "1/2-1/2"]
[WhiteElo "2883"]
[BlackElo "2639"]
[TimeControl "180+1"]
[EndTime "14:28:19 PST"]
[Termination "Game drawn by repetition"]

1. d4 {[%clk 0:03:00.9]} 1... Nf6 {[%clk 0:02:59.3]} 2. Nf3 {[%clk 0:03:00.7]}
2... d5 {[%clk 0:02:57.6]} 3. c4 {[%clk 0:03:00.9]} 3... e6 {[%clk 0:02:57.7]}
4. Nc3 {[%clk 0:03:01.4]} 4... Be7 {[%clk 0:02:57.5]} 5. Bf4 {[%clk 0:03:01.3]}
5... O-O {[%clk 0:02:57.2]} 6. e3 {[%clk 0:03:01.8]} 6... b6 {[%clk 0:02:57.1]}
7. Bd3 {[%clk 0:03:01.4]} 7... dxc4 {[%clk 0:02:57.7]} 8. Bxc4 {[%clk
0:03:02.3]} 8... Ba6 {[%clk 0:02:58]} 9. Bxa6 {[%clk 0:03:01.7]} 9... Nxa6
{[%clk 0:02:58.9]} 10. O-O {[%clk 0:03:02]} 10... c5 {[%clk 0:02:58.5]} 11. Qe2
{[%clk 0:03:02.1]} 11... Qc8 {[%clk 0:02:58.2]} 12. Rac1 {[%clk 0:03:01]} 12...
Qb7 {[%clk 0:02:58.2]} 13. Nb5 {[%clk 0:02:59]} 13... Rfd8 {[%clk 0:02:48.3]}
14. a3 {[%clk 0:02:57.5]} 14... Rac8 {[%clk 0:02:46.1]} 15. h3 {[%clk 0:02:54]}
15... h6 {[%clk 0:02:45.9]} 16. Rfd1 {[%clk 0:02:44.7]} 16... cxd4 {[%clk
0:02:45.4]} 17. exd4 {[%clk 0:02:22]} 17... Nd5 {[%clk 0:02:42.5]} 18. Qe4
{[%clk 0:02:17.2]} 18... Qd7 {[%clk 0:02:32]} 19. a4 {[%clk 0:02:09.1]} 19...
Nxf4 {[%clk 0:02:29.2]} 20. Qxf4 {[%clk 0:02:10]} 20... Bf6 {[%clk 0:02:15.2]}
21. Rxc8 {[%clk 0:01:26.8]} 21... Rxc8 {[%clk 0:02:14.5]} 22. Rc1 {[%clk
0:01:27.4]} 22... Rxc1+ {[%clk 0:02:00.2]} 23. Qxc1 {[%clk 0:01:28.3]} 23... Nb4
{[%clk 0:02:00.4]} 24. Qf4 {[%clk 0:01:27.4]} 24... a6 {[%clk 0:01:51.4]} 25.
Nc3 {[%clk 0:01:15.8]} 25... Nd5 {[%clk 0:01:37.6]} 26. Qb8+ {[%clk 0:01:06.7]}
26... Qd8 {[%clk 0:01:30.2]} 27. Qb7 {[%clk 0:01:01.8]} 27... Nb4 {[%clk
0:01:09.7]} 28. Ne5 {[%clk 0:00:37.6]} 28... Bxe5 {[%clk 0:01:07.4]} 29. dxe5
{[%clk 0:00:38.5]} 29... Qd4 {[%clk 0:01:04]} 30. Qa8+ {[%clk 0:00:16]} 30...
Kh7 {[%clk 0:01:04.1]} 31. Qf3 {[%clk 0:00:16.3]} 31... Kg8 {[%clk 0:00:52.6]}
32. Qa8+ {[%clk 0:00:15.7]} 32... Kh7 {[%clk 0:00:52.8]} 33. Qf3 {[%clk
0:00:16.3]} 33... Kg8 {[%clk 0:00:53.1]} 34. Qa8+ {[%clk 0:00:16]} 1/2-1/2

[Event "Late-Titled-Tuesday-Blitz-February-06-2024"]
[Site "Chess.com"]
[Date "2024.02.06"]
[Round "3"]
[White "CFalcons8"]
[Black "riconaipe"]
[Result "1-0"]
[WhiteElo "2379"]
[BlackElo "2588"]
[TimeControl "180+1"]
[EndTime "14:28:23 PST"]
[Termination "CFalcons8 won by checkmate"]

1. d4 {[%clk 0:03:00.4]} 1... Nf6 {[%clk 0:02:57.8]} 2. Nc3 {[%clk 0:02:59.6]}
2... d5 {[%clk 0:02:53.9]} 3. Bf4 {[%clk 0:03:00.2]} 3... c6 {[%clk 0:02:53.5]}
4. e3 {[%clk 0:02:57.1]} 4... Qb6 {[%clk 0:02:52.1]} 5. b3 {[%clk 0:02:52.7]}
5... Bf5 {[%clk 0:02:51.9]} 6. Bd3 {[%clk 0:02:52.3]} 6... e6 {[%clk 0:02:52.1]}
7. Bxf5 {[%clk 0:02:52.6]} 7... exf5 {[%clk 0:02:53]} 8. Nge2 {[%clk 0:02:53.3]}
8... Nbd7 {[%clk 0:02:52.1]} 9. O-O {[%clk 0:02:54.2]} 9... Ba3 {[%clk
0:02:47.6]} 10. Na4 {[%clk 0:02:53]} 10... Qa5 {[%clk 0:02:41.7]} 11. c4 {[%clk
0:02:52.4]} 11... O-O {[%clk 0:02:40.9]} 12. Rb1 {[%clk 0:02:40.2]} 12... Rfe8
{[%clk 0:02:39.9]} 13. Qc2 {[%clk 0:02:38.6]} 13... g6 {[%clk 0:02:37.5]} 14. h3
{[%clk 0:02:37.5]} 14... Ne4 {[%clk 0:02:33.2]} 15. Rfd1 {[%clk 0:02:35.2]}
15... Rac8 {[%clk 0:02:20.5]} 16. Nac3 {[%clk 0:02:22]} 16... Bb4 {[%clk
0:02:15.2]} 17. Nxe4 {[%clk 0:02:22.4]} 17... fxe4 {[%clk 0:02:14.9]} 18. a3
{[%clk 0:02:10.5]} 18... Bf8 {[%clk 0:02:05.4]} 19. Ra1 {[%clk 0:01:58]} 19...
b5 {[%clk 0:02:00.5]} 20. b4 {[%clk 0:01:58.2]} 20... Qd8 {[%clk 0:01:45.4]} 21.
c5 {[%clk 0:01:58.3]} 21... f5 {[%clk 0:01:41.6]} 22. a4 {[%clk 0:01:57.2]}
22... a6 {[%clk 0:01:40.1]} 23. axb5 {[%clk 0:01:56.7]} 23... axb5 {[%clk
0:01:41]} 24. Ra7 {[%clk 0:01:56.3]} 24... g5 {[%clk 0:01:39.9]} 25. Bh2 {[%clk
0:01:55.1]} 25... Re7 {[%clk 0:01:35.5]} 26. Ng3 {[%clk 0:01:51]} 26... Rf7
{[%clk 0:01:35.1]} 27. Rda1 {[%clk 0:01:35.2]} 27... f4 {[%clk 0:01:32.5]} 28.
exf4 {[%clk 0:01:36.1]} 28... gxf4 {[%clk 0:01:32.7]} 29. Nh5 {[%clk 0:01:36.9]}
29... f3 {[%clk 0:01:27.6]} 30. Qd2 {[%clk 0:01:30.9]} 30... Qh4 {[%clk
0:01:24.5]} 31. Ng3 {[%clk 0:01:11.8]} 31... fxg2 {[%clk 0:01:23.9]} 32. Ra8
{[%clk 0:01:07.5]} 32... Rxa8 {[%clk 0:00:56.8]} 33. Rxa8 {[%clk 0:01:08.4]}
33... Qxh3 {[%clk 0:00:47.9]} 34. Qg5+ {[%clk 0:01:06.6]} 34... Kh8 {[%clk
0:00:48.2]} 35. Nh5 {[%clk 0:00:56.2]} 35... Qe6 {[%clk 0:00:32.2]} 36. Be5+
{[%clk 0:00:52.6]} 36... Nxe5 {[%clk 0:00:29.4]} 37. Rxf8+ {[%clk 0:00:52.4]}
37... Rxf8 {[%clk 0:00:28.9]} 38. Qg7# {[%clk 0:00:53.3]} 1-0

[Event "Late-Titled-Tuesday-Blitz-February-06-2024"]
[Site "Chess.com"]
[Date "2024.02.06"]
[Round "3"]
[White "Statham_01"]
[Black "ChessFanNM"]
[Result "1-0"]
[WhiteElo "2594"]
[BlackElo "2356"]
[TimeControl "180+1"]
[EndTime "14:28:23 PST"]
[Termination "Statham_01 won on time"]

1. e4 {[%clk 0:03:00.9]} 1... c6 {[%clk 0:02:17.6]} 2. d4 {[%clk 0:03:00.9]}
2... d5 {[%clk 0:02:17.3]} 3. f3 {[%clk 0:03:01.6]} 3... Nf6 {[%clk 0:02:06]} 4.
e5 {[%clk 0:03:00.7]} 4... Nfd7 {[%clk 0:02:05.5]} 5. f4 {[%clk 0:03:01.3]} 5...
e6 {[%clk 0:02:05.1]} 6. Nf3 {[%clk 0:03:01.8]} 6... c5 {[%clk 0:02:04.9]} 7. c3
{[%clk 0:03:01.9]} 7... Nc6 {[%clk 0:02:04.7]} 8. Bd3 {[%clk 0:03:02.2]} 8... h6
{[%clk 0:02:01.2]} 9. a3 {[%clk 0:03:01.6]} 9... Qb6 {[%clk 0:01:52.4]} 10. Bc2
{[%clk 0:03:01.5]} 10... a5 {[%clk 0:01:33.6]} 11. O-O {[%clk 0:02:59.8]} 11...
Be7 {[%clk 0:01:29.2]} 12. Ra2 {[%clk 0:02:59.6]} 12... g6 {[%clk 0:01:09.1]}
13. Be3 {[%clk 0:02:58.1]} 13... Nf8 {[%clk 0:01:03.7]} 14. Nbd2 {[%clk
0:02:54.7]} 14... Bd7 {[%clk 0:01:02.6]} 15. Kh1 {[%clk 0:02:54.5]} 15... c4
{[%clk 0:00:56.7]} 16. Qe2 {[%clk 0:02:45.7]} 16... a4 {[%clk 0:00:51.9]} 17. h3
{[%clk 0:02:36.8]} 17... Qa5 {[%clk 0:00:51.2]} 18. Raa1 {[%clk 0:02:35.9]}
18... O-O-O {[%clk 0:00:50.3]} 19. Rfc1 {[%clk 0:02:25]} 19... b5 {[%clk
0:00:50.2]} 20. Bd1 {[%clk 0:02:18.4]} 20... Be8 {[%clk 0:00:49.5]} 21. Ne1
{[%clk 0:02:18.3]} 21... Nd7 {[%clk 0:00:48.5]} 22. Nc2 {[%clk 0:02:18.5]} 22...
Kb7 {[%clk 0:00:42.1]} 23. Nb4 {[%clk 0:02:18.9]} 23... Bf8 {[%clk 0:00:33.4]}
24. Qf3 {[%clk 0:02:15.9]} 24... Ndb8 {[%clk 0:00:27.8]} 25. Rab1 {[%clk
0:02:14.3]} 25... Nxb4 {[%clk 0:00:20.1]} 26. axb4 {[%clk 0:02:10.9]} 26... Qb6
{[%clk 0:00:20]} 27. Ra1 {[%clk 0:02:10.3]} 27... Bc6 {[%clk 0:00:19.8]} 28. Bf2
{[%clk 0:02:04.8]} 28... Be7 {[%clk 0:00:19.4]} 29. Kg1 {[%clk 0:01:55.6]} 29...
Rdg8 {[%clk 0:00:18.5]} 30. g4 {[%clk 0:01:55.2]} 30... Qd8 {[%clk 0:00:16.9]}
31. Nb1 {[%clk 0:01:48.6]} 31... Bd7 {[%clk 0:00:16.6]} 32. Na3 {[%clk
0:01:48.4]} 32... Kb6 {[%clk 0:00:15.9]} 33. Rcb1 {[%clk 0:01:42.2]} 33... Rg7
{[%clk 0:00:14.2]} 34. Nxc4+ {[%clk 0:01:39.3]} 34... bxc4 {[%clk 0:00:10.5]}
35. Bxa4 {[%clk 0:01:39.3]} 35... Bxa4 {[%clk 0:00:10.5]} 36. Rxa4 {[%clk
0:01:40.2]} 36... Nc6 {[%clk 0:00:10.7]} 37. Rba1 {[%clk 0:01:40.4]} 37... Rgg8
{[%clk 0:00:09.5]} 38. Ra6+ {[%clk 0:01:38.5]} 38... Kb7 {[%clk 0:00:08.4]} 39.
b5 {[%clk 0:01:39.2]} 39... Nb8 {[%clk 0:00:07.7]} 40. Ra7+ {[%clk 0:01:39.4]}
40... Kb6 {[%clk 0:00:07.5]} 41. b3 {[%clk 0:01:38.9]} 41... Bh4 {[%clk
0:00:02.1]} 42. bxc4 {[%clk 0:01:36.9]} 1-0

[Event "Late-Titled-Tuesday-Blitz-February-06-2024"]
[Site "Chess.com"]
[Date "2024.02.06"]
[Round "3"]
[White "GothamChess"]
[Black "DenLaz"]
[Result "0-1"]
[WhiteElo "2692"]
[BlackElo "3045"]
[TimeControl "180+1"]
[EndTime "14:28:30 PST"]
[Termination "DenLaz won by resignation"]

1. d4 {[%clk 0:03:00.9]} 1... f5 {[%clk 0:02:59.4]} 2. Qd3 {[%clk 0:02:58.2]}
2... Nc6 {[%clk 0:02:59.4]} 3. Nf3 {[%clk 0:02:53.3]} 3... e6 {[%clk 0:02:58.9]}
4. Bg5 {[%clk 0:02:50.5]} 4... Be7 {[%clk 0:02:57.1]} 5. Bxe7 {[%clk 0:02:48.7]}
5... Qxe7 {[%clk 0:02:58]} 6. Nc3 {[%clk 0:02:47.9]} 6... Nf6 {[%clk 0:02:58.3]}
7. O-O-O {[%clk 0:02:43.8]} 7... d5 {[%clk 0:02:53.5]} 8. h3 {[%clk 0:02:39.7]}
8... Ne4 {[%clk 0:02:49.3]} 9. Qe3 {[%clk 0:02:37.3]} 9... Bd7 {[%clk
0:02:45.8]} 10. g3 {[%clk 0:02:30.9]} 10... O-O-O {[%clk 0:02:41.7]} 11. Bg2
{[%clk 0:02:29]} 11... Kb8 {[%clk 0:02:41]} 12. Nd2 {[%clk 0:02:24]} 12... Nd6
{[%clk 0:02:35.1]} 13. f4 {[%clk 0:02:16.1]} 13... Qf6 {[%clk 0:02:31.6]} 14.
Nf3 {[%clk 0:02:15.8]} 14... h6 {[%clk 0:02:26]} 15. Ne5 {[%clk 0:02:15.5]}
15... g5 {[%clk 0:02:25]} 16. Rhf1 {[%clk 0:02:06.1]} 16... Rhg8 {[%clk
0:02:23.5]} 17. g4 {[%clk 0:02:03.5]} 17... gxf4 {[%clk 0:02:14.8]} 18. Qxf4
{[%clk 0:01:56.5]} 18... Qg7 {[%clk 0:02:04.1]} 19. Bf3 {[%clk 0:01:22]} 19...
fxg4 {[%clk 0:01:58.9]} 20. Bxg4 {[%clk 0:01:18.3]} 20... Nxe5 {[%clk
0:01:57.5]} 21. Qxe5 {[%clk 0:00:46.6]} 21... Qxe5 {[%clk 0:01:54.5]} 22. dxe5
{[%clk 0:00:47.5]} 22... Nc4 {[%clk 0:01:55]} 23. Rf6 {[%clk 0:00:48.2]} 23...
Rge8 {[%clk 0:01:26.4]} 24. Rxh6 {[%clk 0:00:38.3]} 24... Nxe5 {[%clk
0:01:26.6]} 25. e4 {[%clk 0:00:37.9]} 25... c6 {[%clk 0:01:25.1]} 26. Rh7 {[%clk
0:00:32.4]} 26... Rg8 {[%clk 0:01:07.9]} 27. Rf1 {[%clk 0:00:25.7]} 27... Nxg4
{[%clk 0:01:01.5]} 28. hxg4 {[%clk 0:00:26.6]} 28... Rxg4 {[%clk 0:01:02.1]} 29.
Rff7 {[%clk 0:00:19.5]} 29... Bc8 {[%clk 0:01:02.5]} 30. e5 {[%clk 0:00:11.5]}
30... d4 {[%clk 0:00:50.1]} 31. Na4 {[%clk 0:00:10.5]} 31... d3 {[%clk
0:00:50.5]} 32. c4 {[%clk 0:00:01.5]} 0-1

[Event "Late-Titled-Tuesday-Blitz-February-06-2024"]
[Site "Chess.com"]
[Date "2024.02.06"]
[Round "3"]
[White "subham777"]
[Black "bipe137"]
[Result "0-1"]
[WhiteElo "2523"]
[BlackElo "2587"]
[TimeControl "180+1"]
[EndTime "14:28:32 PST"]
[Termination "bipe137 won on time"]

1. e4 {[%clk 0:03:00.9]} 1... c5 {[%clk 0:02:57]} 2. Nf3 {[%clk 0:03:00.3]} 2...
e6 {[%clk 0:02:54.1]} 3. g3 {[%clk 0:02:58.5]} 3... Nc6 {[%clk 0:02:52.8]} 4.
Bg2 {[%clk 0:02:56.6]} 4... Nf6 {[%clk 0:02:52.6]} 5. d3 {[%clk 0:02:56.7]} 5...
d5 {[%clk 0:02:51.9]} 6. exd5 {[%clk 0:02:55.7]} 6... Nxd5 {[%clk 0:02:49.8]} 7.
O-O {[%clk 0:02:56.2]} 7... b6 {[%clk 0:02:50.1]} 8. Re1 {[%clk 0:02:51.1]} 8...
Bb7 {[%clk 0:02:49.9]} 9. h4 {[%clk 0:02:44.2]} 9... Be7 {[%clk 0:02:49.5]} 10.
Nbd2 {[%clk 0:02:39.8]} 10... O-O {[%clk 0:02:48.5]} 11. Nf1 {[%clk 0:02:35.5]}
11... Rc8 {[%clk 0:02:44.5]} 12. N1h2 {[%clk 0:02:34.6]} 12... Nd4 {[%clk
0:02:36.3]} 13. a3 {[%clk 0:02:13.1]} 13... Qc7 {[%clk 0:02:25]} 14. c4 {[%clk
0:01:51.7]} 14... Nf6 {[%clk 0:02:17]} 15. Nxd4 {[%clk 0:01:47]} 15... cxd4
{[%clk 0:02:15.9]} 16. Bf4 {[%clk 0:01:46.6]} 16... Qd7 {[%clk 0:02:13.5]} 17.
Be5 {[%clk 0:01:37.5]} 17... Bxg2 {[%clk 0:02:09.6]} 18. Kxg2 {[%clk 0:01:38.4]}
18... Rfd8 {[%clk 0:02:08]} 19. Nf3 {[%clk 0:01:30.5]} 19... Qb7 {[%clk
0:02:07]} 20. Kg1 {[%clk 0:01:26.4]} 20... Ng4 {[%clk 0:02:04]} 21. Bxd4 {[%clk
0:01:09.8]} 21... h5 {[%clk 0:02:03.5]} 22. Bc3 {[%clk 0:01:02.7]} 22... Rxc4
{[%clk 0:02:01.8]} 23. Ne5 {[%clk 0:00:49.4]} 23... Bc5 {[%clk 0:01:51.6]} 24.
Nxg4 {[%clk 0:00:23.9]} 24... Rxg4 {[%clk 0:01:50.6]} 25. d4 {[%clk 0:00:13.4]}
25... Bxd4 {[%clk 0:01:45.9]} 26. Bxd4 {[%clk 0:00:13.6]} 26... Rdxd4 {[%clk
0:01:42.2]} 27. Qb3 {[%clk 0:00:12.8]} 27... Qd5 {[%clk 0:01:38]} 28. Qxd5
{[%clk 0:00:07.4]} 28... Rxd5 {[%clk 0:01:38.9]} 29. Re2 {[%clk 0:00:07.6]}
29... Rc4 {[%clk 0:01:37.3]} 30. Kg2 {[%clk 0:00:06.6]} 30... Kf8 {[%clk
0:01:36.4]} 31. Rae1 {[%clk 0:00:06.4]} 31... Ke7 {[%clk 0:01:36.1]} 32. Kg1
{[%clk 0:00:06]} 32... Rd3 {[%clk 0:01:33.7]} 33. Kg2 {[%clk 0:00:06.2]} 33...
a5 {[%clk 0:01:33.5]} 34. Rb1 {[%clk 0:00:04.4]} 34... a4 {[%clk 0:01:29.6]} 35.
Rbe1 {[%clk 0:00:04.6]} 35... Rb3 {[%clk 0:01:25]} 36. Rd2 {[%clk 0:00:04.7]}
36... b5 {[%clk 0:01:24.2]} 37. Red1 {[%clk 0:00:05]} 37... Rc7 {[%clk
0:01:24.5]} 38. Re1 {[%clk 0:00:01.8]} 38... b4 {[%clk 0:01:24.4]} 39. axb4
{[%clk 0:00:02.7]} 39... Rxb4 {[%clk 0:01:24.7]} 40. Re3 {[%clk 0:00:03.4]}
40... Rcb7 {[%clk 0:01:24.5]} 41. Ra3 {[%clk 0:00:03.4]} 41... f6 {[%clk
0:01:23.1]} 42. Re2 {[%clk 0:00:02.7]} 42... g5 {[%clk 0:01:22.6]} 43. hxg5
{[%clk 0:00:02.5]} 43... fxg5 {[%clk 0:01:23.5]} 44. Rae3 {[%clk 0:00:02.8]}
44... R7b6 {[%clk 0:01:23.9]} 45. Ra3 {[%clk 0:00:02.9]} 45... Kf6 {[%clk
0:01:24.2]} 46. Rd2 {[%clk 0:00:02.4]} 46... h4 {[%clk 0:01:22.3]} 47. gxh4
{[%clk 0:00:01.7]} 47... gxh4 {[%clk 0:01:23.2]} 0-1

[Event "Late-Titled-Tuesday-Blitz-February-06-2024"]
[Site "Chess.com"]
[Date "2024.02.06"]
[Round "3"]
[White "Orest_Vovk"]
[Black "N_I_Chess"]
[Result "1-0"]
[WhiteElo "2582"]
[BlackElo "2341"]
[TimeControl "180+1"]
[EndTime "14:28:35 PST"]
[Termination "Orest_Vovk won on time"]

1. h4 {[%clk 0:02:57.1]} 1... d5 {[%clk 0:02:51.1]} 2. h5 {[%clk 0:02:57.4]}
2... h6 {[%clk 0:02:50.6]} 3. e4 {[%clk 0:02:57]} 3... dxe4 {[%clk 0:02:47.4]}
4. Nc3 {[%clk 0:02:57.5]} 4... Nf6 {[%clk 0:02:44.3]} 5. Qe2 {[%clk 0:02:57.7]}
5... Bf5 {[%clk 0:02:30.9]} 6. Qb5+ {[%clk 0:02:57.5]} 6... Bd7 {[%clk
0:02:29.1]} 7. Qxb7 {[%clk 0:02:57.5]} 7... Nc6 {[%clk 0:02:24.8]} 8. Bb5 {[%clk
0:02:57.1]} 8... Rb8 {[%clk 0:02:17.3]} 9. Qxc6 {[%clk 0:02:56.7]} 9... Bxc6
{[%clk 0:02:12.7]} 10. Bxc6+ {[%clk 0:02:57.6]} 10... Nd7 {[%clk 0:02:13.3]} 11.
Nxe4 {[%clk 0:02:57.8]} 11... Rb6 {[%clk 0:02:00.2]} 12. Ba4 {[%clk 0:02:57.1]}
12... e5 {[%clk 0:01:40.5]} 13. Nf3 {[%clk 0:02:55.4]} 13... Rb4 {[%clk
0:01:29.3]} 14. Nc3 {[%clk 0:02:46.3]} 14... Bd6 {[%clk 0:01:22.1]} 15. d3
{[%clk 0:02:39.3]} 15... O-O {[%clk 0:01:21.5]} 16. a3 {[%clk 0:02:35.9]} 16...
Rg4 {[%clk 0:01:20.9]} 17. g3 {[%clk 0:02:30.6]} 17... Nc5 {[%clk 0:00:42.8]}
18. Bc6 {[%clk 0:02:29.2]} 18... Qf6 {[%clk 0:00:30]} 19. Nd5 {[%clk 0:02:14.8]}
19... Qd8 {[%clk 0:00:28.2]} 20. Ne3 {[%clk 0:02:07.1]} 20... Ra4 {[%clk
0:00:20.5]} 21. Bxa4 {[%clk 0:02:03.9]} 21... Nxa4 {[%clk 0:00:21.4]} 22. Nc4
{[%clk 0:01:51.4]} 22... Nc5 {[%clk 0:00:19.7]} 23. Be3 {[%clk 0:01:41.8]} 23...
Qf6 {[%clk 0:00:19.6]} 24. Nfd2 {[%clk 0:01:37]} 24... e4 {[%clk 0:00:18.8]} 25.
Bxc5 {[%clk 0:01:28.5]} 25... Bxc5 {[%clk 0:00:17.3]} 26. Nxe4 {[%clk 0:01:28]}
26... Qe7 {[%clk 0:00:16.4]} 27. O-O-O {[%clk 0:01:20.4]} 27... f5 {[%clk
0:00:16.9]} 28. Nxc5 {[%clk 0:01:19.3]} 28... Qxc5 {[%clk 0:00:16.7]} 29. Rd2
{[%clk 0:01:14.5]} 29... Re8 {[%clk 0:00:16.9]} 30. Kb1 {[%clk 0:01:00]} 30...
Qd4 {[%clk 0:00:00.8]} 31. Rh4 {[%clk 0:00:55.2]} 1-0

[Event "Late-Titled-Tuesday-Blitz-February-06-2024"]
[Site "Chess.com"]
[Date "2024.02.06"]
[Round "3"]
[White "VladimirKramnik"]
[Black "YurasovMat-2012"]
[Result "1-0"]
[WhiteElo "2927"]
[BlackElo "2678"]
[TimeControl "180+1"]
[EndTime "14:28:36 PST"]
[Termination "VladimirKramnik won by resignation"]

1. e4 {[%clk 0:03:00.9]} 1... e5 {[%clk 0:02:59.6]} 2. Nf3 {[%clk 0:03:00.5]}
2... Nf6 {[%clk 0:02:59.3]} 3. d3 {[%clk 0:02:58.6]} 3... Nc6 {[%clk 0:02:58.1]}
4. g3 {[%clk 0:02:58.4]} 4... d5 {[%clk 0:02:57.7]} 5. exd5 {[%clk 0:02:58]}
5... Nxd5 {[%clk 0:02:57.8]} 6. Bg2 {[%clk 0:02:58.1]} 6... Be7 {[%clk 0:02:57]}
7. O-O {[%clk 0:02:58.6]} 7... O-O {[%clk 0:02:57.2]} 8. Re1 {[%clk 0:02:56.3]}
8... f6 {[%clk 0:02:54.7]} 9. c3 {[%clk 0:02:56.2]} 9... Nb6 {[%clk 0:02:48.5]}
10. a4 {[%clk 0:02:50.4]} 10... a5 {[%clk 0:02:33.7]} 11. d4 {[%clk 0:02:50.2]}
11... exd4 {[%clk 0:02:33.3]} 12. Nxd4 {[%clk 0:02:48.2]} 12... Nxd4 {[%clk
0:02:32.2]} 13. cxd4 {[%clk 0:02:45.1]} 13... Bb4 {[%clk 0:02:19.4]} 14. Nc3
{[%clk 0:02:45]} 14... c6 {[%clk 0:02:18.9]} 15. Qb3+ {[%clk 0:02:38.4]} 15...
Kh8 {[%clk 0:02:18.4]} 16. Be3 {[%clk 0:02:38.7]} 16... Re8 {[%clk 0:02:17.1]}
17. d5 {[%clk 0:02:13.8]} 17... c5 {[%clk 0:02:09.1]} 18. Bf4 {[%clk 0:01:52.4]}
18... Rxe1+ {[%clk 0:02:03.2]} 19. Rxe1 {[%clk 0:01:51.2]} 19... Bf5 {[%clk
0:02:02.8]} 20. d6 {[%clk 0:01:46.7]} 20... Bg6 {[%clk 0:01:25.1]} 21. Re7
{[%clk 0:01:38.8]} 21... Nd7 {[%clk 0:01:18.9]} 22. Qe6 {[%clk 0:01:21.2]} 22...
Nf8 {[%clk 0:01:10.9]} 23. Qd5 {[%clk 0:01:20.7]} 23... Rb8 {[%clk 0:01:00.4]}
24. h4 {[%clk 0:01:19.6]} 24... Nd7 {[%clk 0:00:46.2]} 25. h5 {[%clk 0:01:14.8]}
25... Be8 {[%clk 0:00:46.7]} 26. h6 {[%clk 0:01:09.9]} 26... g5 {[%clk
0:00:37.9]} 27. Be4 {[%clk 0:01:04.3]} 27... Nf8 {[%clk 0:00:33.7]} 28. Qxg5
{[%clk 0:00:43.5]} 28... fxg5 {[%clk 0:00:17.7]} 29. Be5+ {[%clk 0:00:42.5]}
29... Kg8 {[%clk 0:00:16.4]} 30. Rg7+ {[%clk 0:00:42.4]} 30... Kh8 {[%clk
0:00:14.6]} 31. Rxg5+ {[%clk 0:00:37.1]} 1-0

[Event "Late-Titled-Tuesday-Blitz-February-06-2024"]
[Site "Chess.com"]
[Date "2024.02.06"]
[Round "3"]
[White "martinmena"]
[Black "TheAlienParty"]
[Result "0-1"]
[WhiteElo "2156"]
[BlackElo "2384"]
[TimeControl "180+1"]
[EndTime "14:28:39 PST"]
[Termination "TheAlienParty won by resignation"]

1. c4 {[%clk 0:03:00.9]} 1... e5 {[%clk 0:02:56.2]} 2. g3 {[%clk 0:02:56.5]}
2... f5 {[%clk 0:02:53.3]} 3. Bg2 {[%clk 0:02:55.6]} 3... Nf6 {[%clk 0:02:52.9]}
4. Nc3 {[%clk 0:02:56.2]} 4... d6 {[%clk 0:02:49.1]} 5. e3 {[%clk 0:02:55.6]}
5... c6 {[%clk 0:02:48.6]} 6. Nge2 {[%clk 0:02:56.2]} 6... Be7 {[%clk
0:02:48.1]} 7. O-O {[%clk 0:02:56.6]} 7... O-O {[%clk 0:02:47.7]} 8. d4 {[%clk
0:02:56.8]} 8... Qe8 {[%clk 0:02:46.6]} 9. d5 {[%clk 0:02:48.2]} 9... Qh5 {[%clk
0:02:44.5]} 10. b3 {[%clk 0:02:41.7]} 10... c5 {[%clk 0:02:16.6]} 11. Bb2 {[%clk
0:02:39.6]} 11... Ng4 {[%clk 0:02:00.5]} 12. h3 {[%clk 0:02:37.8]} 12... Nf6
{[%clk 0:01:57.5]} 13. f4 {[%clk 0:02:34.2]} 13... Qh6 {[%clk 0:01:50.1]} 14.
Nb5 {[%clk 0:02:31.2]} 14... Nbd7 {[%clk 0:01:35.4]} 15. Nc7 {[%clk 0:02:15.5]}
15... Rb8 {[%clk 0:01:34.3]} 16. Ne6 {[%clk 0:02:14.6]} 16... Rf7 {[%clk
0:01:29.7]} 17. Ng5 {[%clk 0:02:00.2]} 17... Rf8 {[%clk 0:01:28.9]} 18. Ne6
{[%clk 0:02:00.2]} 18... Re8 {[%clk 0:01:27.5]} 19. Nc3 {[%clk 0:01:58.4]} 19...
e4 {[%clk 0:01:15.8]} 20. Nb5 {[%clk 0:01:56.4]} 20... Nf8 {[%clk 0:01:12.2]}
21. Nxf8 {[%clk 0:01:55.3]} 21... Bxf8 {[%clk 0:01:08.8]} 22. Nxa7 {[%clk
0:01:53.5]} 22... Bd7 {[%clk 0:01:08.6]} 23. a4 {[%clk 0:01:52.7]} 23... Nh5
{[%clk 0:01:01.3]} 24. Kf2 {[%clk 0:01:42.2]} 24... g5 {[%clk 0:00:58]} 25. Qe1
{[%clk 0:01:21.1]} 25... gxf4 {[%clk 0:00:53.8]} 26. gxf4 {[%clk 0:01:06.7]}
26... Kf7 {[%clk 0:00:52.5]} 27. Ke2 {[%clk 0:01:02.3]} 27... Be7 {[%clk
0:00:50.6]} 28. Rg1 {[%clk 0:00:35.4]} 28... Rg8 {[%clk 0:00:49.3]} 29. Qf2
{[%clk 0:00:28.9]} 29... Ng3+ {[%clk 0:00:45.3]} 30. Kd2 {[%clk 0:00:24.4]}
30... Bh4 {[%clk 0:00:44.3]} 31. Kc2 {[%clk 0:00:20.4]} 31... Ke7 {[%clk
0:00:42.6]} 32. Qe2 {[%clk 0:00:15.9]} 32... Nxe2 {[%clk 0:00:41.7]} 0-1

[Event "Late-Titled-Tuesday-Blitz-February-06-2024"]
[Site "Chess.com"]
[Date "2024.02.06"]
[Round "3"]
[White "Durarbayli"]
[Black "GMG"]
[Result "1-0"]
[WhiteElo "2914"]
[BlackElo "2677"]
[TimeControl "180+1"]
[EndTime "14:28:43 PST"]
[Termination "Durarbayli won by resignation"]

1. e4 {[%clk 0:03:00.9]} 1... c5 {[%clk 0:03:00]} 2. Nf3 {[%clk 0:03:00.6]} 2...
Nc6 {[%clk 0:03:00.6]} 3. Bb5 {[%clk 0:02:56]} 3... e6 {[%clk 0:03:00.6]} 4. O-O
{[%clk 0:02:55.3]} 4... Nge7 {[%clk 0:03:00.6]} 5. c3 {[%clk 0:02:48.6]} 5... a6
{[%clk 0:02:55.7]} 6. Ba4 {[%clk 0:02:44.7]} 6... b5 {[%clk 0:02:53.9]} 7. Bc2
{[%clk 0:02:44.7]} 7... d5 {[%clk 0:02:53]} 8. a4 {[%clk 0:02:32.9]} 8... b4
{[%clk 0:02:40.6]} 9. e5 {[%clk 0:02:17.5]} 9... c4 {[%clk 0:02:31.6]} 10. b3
{[%clk 0:02:08.4]} 10... a5 {[%clk 0:02:24.2]} 11. d4 {[%clk 0:02:04.1]} 11...
Ba6 {[%clk 0:02:08.9]} 12. Re1 {[%clk 0:02:02.9]} 12... Rb8 {[%clk 0:02:08.1]}
13. Bg5 {[%clk 0:01:43.8]} 13... Qb6 {[%clk 0:02:02.1]} 14. bxc4 {[%clk
0:01:35.6]} 14... dxc4 {[%clk 0:01:44.9]} 15. cxb4 {[%clk 0:01:27.2]} 15... axb4
{[%clk 0:01:43.7]} 16. a5 {[%clk 0:01:28.1]} 16... Qb7 {[%clk 0:01:28.6]} 17.
Bxe7 {[%clk 0:00:46]} 17... Bxe7 {[%clk 0:01:26.4]} 18. d5 {[%clk 0:00:46.6]}
18... exd5 {[%clk 0:01:25]} 19. Qxd5 {[%clk 0:00:47.5]} 19... Qb5 {[%clk
0:01:01.8]} 20. Qe4 {[%clk 0:00:43.7]} 20... g6 {[%clk 0:00:53.7]} 21. Ba4
{[%clk 0:00:40.2]} 21... O-O {[%clk 0:00:53]} 22. Bxb5 {[%clk 0:00:38.1]} 22...
Bxb5 {[%clk 0:00:53.9]} 23. Nbd2 {[%clk 0:00:34.8]} 23... c3 {[%clk 0:00:52.3]}
24. Nb3 {[%clk 0:00:34.9]} 24... Rfc8 {[%clk 0:00:45.9]} 25. a6 {[%clk
0:00:24.7]} 25... Ra8 {[%clk 0:00:45.9]} 26. e6 {[%clk 0:00:21.1]} 26... f6
{[%clk 0:00:41.4]} 27. Qd5 {[%clk 0:00:21.1]} 27... Bxa6 {[%clk 0:00:40.5]} 28.
Qd7 {[%clk 0:00:13.9]} 28... Ra7 {[%clk 0:00:28.6]} 29. Rxa6 {[%clk 0:00:12.2]}
1-0